[Event "XXI Torredembarra Open 2019"]
[Site "Torredembarra"]
[Date "2019.07.09"]
[Round "4.9"]
[White "Girona Rovira, Albert"]
[Black "Guasch Figuerola, Agusti"]
[Result "0-1"]
[ECO "A41"]
[WhiteElo "1817"]
[BlackElo "2071"]
[Annotator "NA"]
[PlyCount "96"]
[EventDate "2019.07.06"]
[EventType "swiss"]
[EventCountry "ESP"]
[SourceTitle "playchess.com"]
[Source "ChessBase"]
[SourceQuality "1"]
[TimeControl "5400+30"]

1. d4 {[%emt 0:00:00]} g6 {[%emt 0:00:00]} 2. c4 {[%emt 0:00:17]} Bg7 {[%emt 0:00:14]} 3. Nf3 {[%emt 0:00:22]} d6 {[%emt 0:00:00]} 4. Nc3 {[%emt 0:00:53]} Nc6 {[%emt 0:00:00]} 5. d5 {[%emt 0:05:08]} Ne5 {[%emt 0:00:46]} 6. Nxe5 {[%emt 0:00:16]} Bxe5 {[%emt 0:02:22]} 7. e4 {[%emt 0:02:46]} Nf6 {[%emt 0:00:00]} 8. Bd3 {[%emt 0:01:35]} O-O {[%emt 0:00:00]} 9. O-O {[%emt 0:01:07]} e6 {[%emt 0:08:18]} 10. f4 {[%emt 0:06:47]} Bd4+ {[%emt 0:00:00]} 11. Kh1 {[%emt 0:00:38]} exd5 {[%emt 0:07:28]} 12. cxd5 {[%emt 0:07:13]} Ng4 {[%emt 0:07:23]} 13. Qe1 {[%emt 0:03:02]} Re8 {[%emt 0:05:31]} 14. Qg3 {[%emt 0:35:06]} f5 {[%emt 0:21:27]} 15. h3 {[%emt 0:04:56]} Nh6 {[%emt 0:10:57]} 16. Qg5 {[%emt 0:08:23]} Kg7 {[%emt 0:01:13]} 17. Qxd8 {[%emt 0:00:00]} Rxd8 {[%emt 0:02:41]} 18. Re1 {[%emt 0:02:44]} Re8 {[%emt 0:03:07]} 19. Nb5 {[%emt 0:00:24]} Bb6 {[%emt 0:01:49]} 20. e5 {[%emt 0:01:23]} a6 {[%emt 0:00:45]} 21. Na3 {[%emt 0:02:38]} Ba5 {[%emt 0:00:00]} 22. Re2 {[%emt 0:00:00]} b5 {[%emt 0:05:44]} 23. Nc2 {[%emt 0:01:41]} Bb7 {[%emt 0:00:00]} 24. b4 {[%emt 0:00:43]} Bb6 {[%emt 0:00:40]} 25. Bb2 {[%emt 0:02:31]} Kf8 {[%emt 0:04:00]} 26. exd6 {[%emt 0:01:19]} cxd6 {[%emt 0:02:17]} 27. Re6 {[%emt 0:03:38]} Rxe6 {[%emt 0:00:00]} 28. dxe6 {[%emt 0:01:35]} Ng8 {[%emt 0:02:59]} 29. a4 {[%emt 0:02:38]} bxa4 {[%emt 0:00:00]} 30. Rxa4 {[%emt 0:00:10]} Ke7 {[%emt 0:02:58]} 31. Nd4 {[%emt 0:03:29]} Nf6 {[%emt 0:00:00]} 32. b5 {[%emt 0:01:27]} axb5 {[%emt 0:00:00]} 33. Rxa8 {[%emt 0:00:00]} Bxa8 {[%emt 0:00:00]} 34. Nxb5 {[%emt 0:00:55]} Nd5 {[%emt 0:01:11]} 35. Bc1 {[%emt 0:04:49]} Ne3 {[%emt 0:00:45]} 36. Bxe3 {[%emt 0:00:00]} Bxe3 {[%emt 0:00:00]} 37. Nc3 {[%emt 0:00:31]} Bxf4 {[%emt 0:00:33]} 38. Bc4 {[%emt 0:02:58]} Bg5 {[%emt 0:00:00]} 39. Kg1 {[%emt 0:00:38]} Kf6 {[%emt 0:00:25]} 40. Kf2 {[%emt 0:00:00]} Ke5 {[%emt 0:01:33]} 41. Nb5 {[%emt 0:01:49]} d5 {[%emt 0:00:37]} 42. Bb3 {[%emt 0:00:24]} Bc6 {[%emt 0:00:24]} 43. Na7 {[%emt 0:00:32]} Be8 {[%emt 0:00:30]} 44. Nc8 {[%emt 0:02:29]} Kxe6 {[%emt 0:00:44]} 45. Nb6 {[%emt 0:00:14]} Bc6 {[%emt 0:00:37]} 46. Nc8 {[%emt 0:01:11]} Be7 {[%emt 0:00:54]} 47. Ke2 {[%emt 0:00:04]} Bc5 {[%emt 0:00:27]} 48. Kd3 {[%emt 0:00:28]} Kd7 {[%emt 0:00:45]} 0-1

[Event "XXI Torredembarra Open 2019"]
[Site "Torredembarra"]
[Date "2019.07.10"]
[Round "5.1"]
[White "Djuric, Stefan"]
[Black "Dardha, Daniel"]
[Result "1/2-1/2"]
[ECO "A31"]
[WhiteElo "2368"]
[BlackElo "2420"]
[Annotator "NA"]
[PlyCount "106"]
[EventDate "2019.07.06"]
[EventType "swiss"]
[EventCountry "ESP"]
[SourceTitle "playchess.com"]
[Source "ChessBase"]
[SourceQuality "1"]
[TimeControl "5400+30"]

1. d4 {[%emt 0:06:12]} Nf6 {[%emt 0:00:10]} 2. c4 {[%emt 0:00:10]} c5 {[%emt 0:00:12]} 3. Nf3 {[%emt 0:04:10]} cxd4 4. Nxd4 {[%emt 0:00:12]} b6 {[%emt 0:02:54]} 5. Nc3 {[%emt 0:03:02]} Bb7 {[%emt 0:03:01]} 6. Bf4 d6 {[%emt 0:02:10]} 7. Qa4+ {[%emt 0:06:49]} Nfd7 {[%emt 0:09:15]} 8. Bg5 Qc8 {[%emt 0:01:09]} 9. e3 Nc6 {[%emt 0:18:36]} 10. Qd1 a6 {[%emt 0:04:29]} 11. Rc1 e6 {[%emt 0:07:16]} 12. a3 {[%emt 0:03:21]} Be7 {[%emt 0:07:09]} 13. Nf3 {[%emt 0:06:47]} Nce5 {[%emt 0:02:07]} 14. Nxe5 {[%emt 0:22:25]} Bxg5 {[%emt 0:00:08]} 15. Qxd6 {[%emt 0:00:18]} Nxe5 16. Qxe5 Bf6 {[%emt 0:04:25]} 17. Qd6 Qc6 {[%emt 0:12:36]} 18. Qxc6+ {[%emt 0:17:44]} Bxc6 {[%emt 0:00:00]} 19. Rg1 {[%emt 0:02:16]} Ke7 {[%emt 0:00:00]} 20. Bd3 Rad8 {[%emt 0:09:20]} 21. Ke2 {[%emt 0:00:06]} g5 {[%emt 0:00:00]} 22. b4 Be5 {[%emt 0:06:47]} 23. h3 {[%emt 0:04:32]} Bh2 {[%emt 0:00:17]} 24. Rh1 {[%emt 0:05:40]} Be5 {[%emt 0:00:00]} 25. Rhg1 {[%emt 0:01:02]} Bh2 {[%emt 0:00:00]} 26. Rh1 Be5 {[%emt 0:00:00]} 27. Rhg1 {[%emt 0:00:00]} Bh2 {[%emt 0:00:00]} 28. Rh1 Be5 {[%emt 0:00:00]} 29. f3 h5 {[%emt 0:00:00]} 30. Be4 {[%emt 0:03:49]} Be8 {[%emt 0:00:41]} 31. Bb7 a5 {[%emt 0:01:14]} 32. Rhd1 {[%emt 0:02:19]} Rxd1 {[%emt 0:00:12]} 33. Nxd1 {[%emt 0:00:11]} axb4 {[%emt 0:01:58]} 34. axb4 Ba4 {[%emt 0:00:19]} 35. c5 bxc5 {[%emt 0:03:53]} 36. bxc5 Bb5+ {[%emt 0:02:42]} 37. Kf2 Rd8 {[%emt 0:00:46]} 38. Nc3 Rd2+ {[%emt 0:01:51]} 39. Ke1 {[%emt 0:00:00]} Bxc3 {[%emt 0:00:00]} 40. Rxc3 {[%emt 0:00:00]} Re2+ {[%emt 0:00:00]} 41. Kd1 {[%emt 0:00:00]} Rxg2 {[%emt 0:00:00]} 42. f4 {[%emt 0:08:44]} Rg1+ {[%emt 0:00:05]} 43. Kd2 {[%emt 0:00:05]} gxf4 44. exf4 {[%emt 0:00:47]} Kd7 {[%emt 0:01:01]} 45. Rb3 {[%emt 0:00:29]} Bc6 46. Rb6 {[%emt 0:01:07]} Bxb7 47. Rxb7+ Kc6 48. Rxf7 Kxc5 {[%emt 0:01:26]} 49. Rh7 {[%emt 0:00:49]} Rg2+ {[%emt 0:01:37]} 50. Ke1 {[%emt 0:00:11]} Kd4 51. Rxh5 Ke3 {[%emt 0:00:19]} 52. Re5+ {[%emt 0:00:03]} Kxf4 53. Rxe6 Rh2 {[%emt 0:00:05]} 1/2-1/2

[Event "XXI Torredembarra Open 2019"]
[Site "Torredembarra"]
[Date "2019.07.10"]
[Round "5.2"]
[White "Farran Martos, Francesc X."]
[Black "Galimany Rovira, Xavier"]
[Result "1-0"]
[ECO "C41"]
[WhiteElo "2432"]
[BlackElo "2086"]
[Annotator "NA"]
[PlyCount "145"]
[EventDate "2019.07.06"]
[EventType "swiss"]
[EventCountry "ESP"]
[SourceTitle "playchess.com"]
[Source "ChessBase"]
[SourceQuality "1"]
[TimeControl "5400+30"]

1. e4 {[%emt 0:00:00]} d6 {[%emt 0:00:00]} 2. d4 {[%emt 0:00:31]} Nf6 {[%emt 0:00:00]} 3. Nc3 {[%emt 0:00:48]} e5 {[%emt 0:00:35]} 4. Nf3 {[%emt 0:02:14]} exd4 {[%emt 0:01:16]} 5. Nxd4 {[%emt 0:00:50]} Be7 {[%emt 0:00:31]} 6. Bc4 {[%emt 0:03:21]} O-O {[%emt 0:00:56]} 7. O-O {[%emt 0:03:36]} c6 {[%emt 0:05:14]} 8. a4 {[%emt 0:04:09]} a5 {[%emt 0:01:50]} 9. Bf4 {[%emt 0:09:40]} Na6 {[%emt 0:14:15]} 10. Re1 {[%emt 0:07:07]} Nc5 {[%emt 0:04:32]} 11. Qd2 {[%emt 0:10:26]} Ne6 {[%emt 0:08:40]} 12. Rad1 {[%emt 0:09:22]} d5 {[%emt 0:13:40]} 13. exd5 {[%emt 0:05:00]} Nxd5 {[%emt 0:04:44]} 14. Nxd5 {[%emt 0:03:48]} cxd5 {[%emt 0:01:01]} 15. Bb3 {[%emt 0:01:26]} Nxf4 {[%emt 0:07:19]} 16. Qxf4 {[%emt 0:00:47]} Bf6 {[%emt 0:01:22]} 17. Qf3 {[%emt 0:03:38]} Ra6 {[%emt 0:05:05]} 18. Bxd5 {[%emt 0:04:38]} Rd6 {[%emt 0:09:50]} 19. Nb5 {[%emt 0:03:54]} Bg4 {[%emt 0:00:56]} 20. Bxf7+ {[%emt 0:01:49]} Rxf7 {[%emt 0:01:07]} 21. Qxg4 {[%emt 0:05:30]} Rxd1 {[%emt 0:02:15]} 22. Rxd1 {[%emt 0:00:18]} Qe7 {[%emt 0:00:43]} 23. Nd6 {[%emt 0:05:06]} Rf8 {[%emt 0:00:43]} 24. Nf5 {[%emt 0:00:40]} Qc5 {[%emt 0:05:06]} 25. c3 {[%emt 0:05:25]} Kh8 {[%emt 0:01:12]} 26. Nd4 {[%emt 0:01:23]} Qc4 {[%emt 0:01:10]} 27. Qd7 {[%emt 0:02:10]} Rd8 {[%emt 0:01:30]} 28. Qxb7 {[%emt 0:01:12]} Qxa4 {[%emt 0:01:02]} 29. Qf3 {[%emt 0:00:46]} Qc4 {[%emt 0:01:38]} 30. g3 {[%emt 0:00:28]} a4 {[%emt 0:00:52]} 31. Rd2 {[%emt 0:00:14]} h6 {[%emt 0:00:48]} 32. Qd1 {[%emt 0:00:41]} a3 {[%emt 0:02:14]} 33. Qa1 {[%emt 0:04:29]} axb2 {[%emt 0:03:42]} 34. Qxb2 {[%emt 0:00:14]} Rc8 {[%emt 0:00:25]} 35. Ne2 {[%emt 0:00:32]} Bxc3 {[%emt 0:00:44]} 36. Nxc3 {[%emt 0:00:46]} Qxc3 {[%emt 0:00:10]} 37. Rd8+ {[%emt 0:00:42]} Kh7 {[%emt 0:00:06]} 38. Qxc3 {[%emt 0:00:22]} Rxc3 {[%emt 0:00:06]} 39. Kg2 {[%emt 0:00:07]} Rc2 {[%emt 0:00:17]} 40. Rd6 {[%emt 0:00:42]} Ra2 {[%emt 0:00:28]} 41. Re6 {[%emt 0:00:07]} Rb2 {[%emt 0:00:06]} 42. Kf1 {[%emt 0:00:16]} Ra2 {[%emt 0:00:15]} 43. Re2 {[%emt 0:00:05]} Ra3 {[%emt 0:00:13]} 44. Kg2 {[%emt 0:00:16]} Rb3 {[%emt 0:00:26]} 45. f4 {[%emt 0:00:13]} Ra3 {[%emt 0:00:21]} 46. Rd2 {[%emt 0:01:20]} Kg6 {[%emt 0:00:18]} 47. Re2 {[%emt 0:00:19]} Rb3 {[%emt 0:00:14]} 48. g4 {[%emt 0:00:29]} Kf6 {[%emt 0:00:28]} 49. Rf2 {[%emt 0:00:21]} Ra3 {[%emt 0:00:59]} 50. Rf3 {[%emt 0:00:08]} Ra1 {[%emt 0:00:14]} 51. Rb3 {[%emt 0:00:11]} Rc1 {[%emt 0:00:27]} 52. h4 {[%emt 0:00:19]} Rc6 {[%emt 0:00:20]} 53. Kf3 {[%emt 0:00:16]} Ra6 {[%emt 0:00:31]} 54. Rd3 {[%emt 0:00:23]} Rb6 {[%emt 0:00:21]} 55. Rd5 {[%emt 0:00:20]} Rb4 {[%emt 0:00:41]} 56. Ke3 {[%emt 0:01:03]} Rb3+ {[%emt 0:01:10]} 57. Ke4 {[%emt 0:00:07]} Rb6 {[%emt 0:00:42]} 58. g5+ {[%emt 0:02:31]} hxg5 {[%emt 0:00:30]} 59. hxg5+ {[%emt 0:00:07]} Kf7 {[%emt 0:01:45]} 60. f5 {[%emt 0:00:17]} Rb8 {[%emt 0:01:13]} 61. Rd7+ {[%emt 0:01:02]} Kf8 {[%emt 0:00:18]} 62. Ke5 {[%emt 0:00:53]} Ra8 {[%emt 0:00:41]} 63. Ke6 {[%emt 0:00:57]} Re8+ {[%emt 0:00:10]} 64. Kd6 {[%emt 0:00:07]} Ra8 {[%emt 0:00:23]} 65. Ke5 {[%emt 0:00:08]} Re8+ {[%emt 0:00:17]} 66. Kf4 {[%emt 0:00:07]} Re1 {[%emt 0:01:07]} 67. Kg4 {[%emt 0:01:07]} Rf1 {[%emt 0:00:41]} 68. Ra7 {[%emt 0:00:22]} Rh1 {[%emt 0:00:32]} 69. Ra3 {[%emt 0:00:57]} Rh2 {[%emt 0:00:15]} 70. g6 {[%emt 0:00:41]} Rg2+ {[%emt 0:00:38]} 71. Kf4 {[%emt 0:00:27]} Rf2+ {[%emt 0:00:23]} 72. Rf3 {[%emt 0:00:13]} Rxf3+ {[%emt 0:00:44]} 73. Kxf3 {[%emt 0:00:05]} 1-0

[Event "XXI Torredembarra Open 2019"]
[Site "Torredembarra"]
[Date "2019.07.10"]
[Round "5.3"]
[White "Lacasa Diaz, Jose Antonio"]
[Black "Gonzalez Rodriguez, Jorge A."]
[Result "1/2-1/2"]
[ECO "A30"]
[WhiteElo "2391"]
[BlackElo "2201"]
[Annotator "NA"]
[PlyCount "68"]
[EventDate "2019.07.06"]
[EventType "swiss"]
[EventCountry "ESP"]
[SourceTitle "playchess.com"]
[Source "ChessBase"]
[SourceQuality "1"]
[TimeControl "5400+30"]

1. Nf3 {[%emt 0:03:07]} Nf6 {[%emt 0:02:23]} 2. c4 b6 {[%emt 0:00:10]} 3. g3 Bb7 {[%emt 0:00:18]} 4. Bg2 {[%emt 0:00:11]} c5 {[%emt 0:00:40]} 5. O-O {[%emt 0:05:44]} g6 {[%emt 0:00:38]} 6. b3 {[%emt 0:00:26]} Bg7 {[%emt 0:00:10]} 7. Bb2 {[%emt 0:00:33]} O-O {[%emt 0:04:26]} 8. Nc3 {[%emt 0:04:50]} d6 {[%emt 0:10:26]} 9. d4 {[%emt 0:01:56]} cxd4 {[%emt 0:00:55]} 10. Qxd4 {[%emt 0:03:44]} Nbd7 {[%emt 0:00:00]} 11. Rfd1 a6 {[%emt 0:12:25]} 12. Qe3 Re8 {[%emt 0:13:04]} 13. h3 Ne4 {[%emt 0:24:00]} 14. Na4 {[%emt 0:02:08]} Bxb2 {[%emt 0:00:00]} 15. Nxb2 {[%emt 0:00:14]} Nef6 {[%emt 0:00:00]} 16. Rd4 b5 {[%emt 0:00:00]} 17. Rad1 Qa5 {[%emt 0:00:00]} 18. a4 {[%emt 0:46:53]} bxa4 19. Nxa4 Rab8 {[%emt 0:02:48]} 20. Qd2 Qxd2 {[%emt 0:00:11]} 21. Nxd2 {[%emt 0:10:06]} Bxg2 22. Kxg2 {[%emt 0:00:47]} Rb7 {[%emt 0:04:57]} 23. Ra1 {[%emt 0:05:23]} Rc8 {[%emt 0:01:16]} 24. Nc3 Nc5 {[%emt 0:13:05]} 25. Nd5 Nxd5 {[%emt 0:13:13]} 26. cxd5 {[%emt 0:03:32]} Rcb8 {[%emt 0:03:29]} 27. e3 {[%emt 0:00:37]} Rb5 {[%emt 0:01:28]} 28. Kf3 {[%emt 0:03:56]} R8b6 {[%emt 0:00:00]} 29. Ra3 Nxb3 {[%emt 0:02:26]} 30. Nxb3 {[%emt 0:02:05]} Rxb3 {[%emt 0:00:16]} 31. Rxb3 {[%emt 0:00:38]} Rxb3 {[%emt 0:03:19]} 32. Ra4 {[%emt 0:00:13]} Rb6 {[%emt 0:00:00]} 33. h4 Kg7 {[%emt 0:00:00]} 34. g4 {[%emt 0:06:24]} h5 {[%emt 0:19:23]} 1/2-1/2

[Event "XXI Torredembarra Open 2019"]
[Site "Torredembarra"]
[Date "2019.07.10"]
[Round "5.4"]
[White "Pogorelov, Ruslan"]
[Black "Marina De La Torre, Ivan"]
[Result "1-0"]
[ECO "D24"]
[WhiteElo "2347"]
[BlackElo "2041"]
[Annotator "NA"]
[PlyCount "27"]
[EventDate "2019.07.06"]
[EventType "swiss"]
[EventCountry "ESP"]
[SourceTitle "playchess.com"]
[Source "ChessBase"]
[SourceQuality "1"]
[TimeControl "5400+30"]

1. Nf3 {[%emt 0:07:15]} Nf6 {[%emt 0:00:16]} 2. c4 {[%emt 0:00:01]} e6 {[%emt 0:00:32]} 3. Nc3 {[%emt 0:00:02]} d5 {[%emt 0:00:39]} 4. d4 {[%emt 0:00:42]} dxc4 {[%emt 0:01:14]} 5. e4 {[%emt 0:01:34]} c6 {[%emt 0:03:06]} 6. Bxc4 {[%emt 0:00:35]} b5 {[%emt 0:00:58]} 7. Bd3 {[%emt 0:01:47]} Bb7 {[%emt 0:01:19]} 8. O-O {[%emt 0:01:53]} a6 {[%emt 0:02:49]} 9. Qc2 {[%emt 0:02:24]} Be7 {[%emt 0:17:24]} 10. Bd2 {[%emt 0:02:12]} Qb6 {[%emt 0:06:55]} 11. Rac1 {[%emt 0:02:21]} c5 {[%emt 0:12:01]} 12. dxc5 {[%emt 0:01:10]} Qxc5 {[%emt 0:18:50]} 13. Qb3 {[%emt 0:15:16]} O-O {[%emt 0:01:55]} 14. Nxb5 {[%emt 0:01:15]} 1-0

[Event "XXI Torredembarra Open 2019"]
[Site "Torredembarra"]
[Date "2019.07.10"]
[Round "5.5"]
[White "Sirera Bargallo, Tomas"]
[Black "Mateos Rozas, Miguel Angel"]
[Result "1-0"]
[ECO "B39"]
[WhiteElo "2115"]
[BlackElo "2194"]
[Annotator "NA"]
[PlyCount "101"]
[EventDate "2019.07.06"]
[EventType "swiss"]
[EventCountry "ESP"]
[SourceTitle "playchess.com"]
[Source "ChessBase"]
[SourceQuality "1"]
[TimeControl "5400+30"]

1. e4 {[%emt 0:00:00]} c5 {[%emt 0:00:20]} 2. Nf3 {[%emt 0:00:00]} Nc6 {[%emt 0:00:35]} 3. d4 {[%emt 0:00:17]} cxd4 {[%emt 0:00:15]} 4. Nxd4 {[%emt 0:00:05]} g6 {[%emt 0:00:09]} 5. c4 {[%emt 0:00:28]} Bg7 {[%emt 0:00:14]} 6. Be3 {[%emt 0:00:04]} Nf6 {[%emt 0:00:31]} 7. Nc3 {[%emt 0:00:06]} Ng4 {[%emt 0:02:01]} 8. Qxg4 {[%emt 0:00:41]} Nxd4 {[%emt 0:00:07]} 9. Qd1 {[%emt 0:00:09]} Ne6 {[%emt 0:00:11]} 10. Rc1 {[%emt 0:00:15]} O-O {[%emt 0:00:13]} 11. Be2 {[%emt 0:00:17]} d6 {[%emt 0:00:38]} 12. O-O {[%emt 0:00:28]} Bd7 {[%emt 0:00:56]} 13. f3 {[%emt 0:08:19]} Bc6 {[%emt 0:00:52]} 14. Qd2 {[%emt 0:02:10]} a5 {[%emt 0:01:37]} 15. b3 {[%emt 0:01:16]} Nc5 {[%emt 0:00:32]} 16. Rc2 {[%emt 0:08:23]} Qb6 {[%emt 0:01:47]} 17. Rb1 {[%emt 0:01:54]} Qc7 {[%emt 0:14:37]} 18. Nd5 {[%emt 0:22:29]} Bxd5 {[%emt 0:17:43]} 19. cxd5 {[%emt 0:00:32]} Rfc8 {[%emt 0:03:22]} 20. Bb5 {[%emt 0:10:32]} h5 {[%emt 0:07:04]} 21. Rbc1 {[%emt 0:07:03]} Kh7 {[%emt 0:19:56]} 22. a3 {[%emt 0:16:10]} Qd8 {[%emt 0:00:00]} 23. b4 {[%emt 0:03:09]} axb4 {[%emt 0:00:00]} 24. axb4 {[%emt 0:00:06]} Na6 {[%emt 0:13:47]} 25. Rxc8 {[%emt 0:02:29]} Rxc8 {[%emt 0:00:02]} 26. Bxa6 {[%emt 0:00:20]} bxa6 {[%emt 0:00:25]} 27. Rc6 {[%emt 0:00:16]} Qd7 {[%emt 0:04:03]} 28. Qc2 {[%emt 0:01:01]} Rb8 {[%emt 0:02:12]} 29. Qc4 {[%emt 0:01:10]} Qb7 {[%emt 0:03:13]} 30. Bb6 {[%emt 0:04:43]} Bf6 {[%emt 0:01:32]} 31. g3 {[%emt 0:01:12]} Qd7 {[%emt 0:01:01]} 32. Kg2 {[%emt 0:01:05]} Ra8 {[%emt 0:01:37]} 33. Bf2 {[%emt 0:01:55]} Qb7 {[%emt 0:00:46]} 34. Rb6 {[%emt 0:00:14]} Qc8 {[%emt 0:01:57]} 35. Qc6 {[%emt 0:00:24]} Bc3 {[%emt 0:00:49]} 36. Qxc8 {[%emt 0:00:26]} Rxc8 {[%emt 0:00:03]} 37. Rc6 {[%emt 0:00:05]} Rb8 {[%emt 0:01:37]} 38. Rxc3 {[%emt 0:00:06]} Rxb4 {[%emt 0:00:03]} 39. Rc7 {[%emt 0:00:23]} Kg7 {[%emt 0:01:03]} 40. Rxe7 {[%emt 0:00:06]} a5 {[%emt 0:00:30]} 41. Rd7 {[%emt 0:00:13]} Kf6 {[%emt 0:01:23]} 42. Rxd6+ {[%emt 0:00:08]} Ke5 {[%emt 0:00:03]} 43. Rd7 {[%emt 0:00:43]} f5 {[%emt 0:00:57]} 44. Re7+ {[%emt 0:00:22]} Kf6 {[%emt 0:00:29]} 45. Re6+ {[%emt 0:00:05]} Kf7 {[%emt 0:00:05]} 46. Rb6 {[%emt 0:01:31]} Rc4 {[%emt 0:00:57]} 47. e5 {[%emt 0:00:21]} a4 {[%emt 0:00:02]} 48. Rb7+ {[%emt 0:00:13]} Kf8 {[%emt 0:00:24]} 49. Ra7 {[%emt 0:00:22]} g5 {[%emt 0:00:19]} 50. e6 {[%emt 0:00:53]} Rc2 {[%emt 0:00:19]} 51. d6 {[%emt 0:00:38]} 1-0

[Event "XXI Torredembarra Open 2019"]
[Site "Torredembarra"]
[Date "2019.07.10"]
[Round "5.6"]
[White "Iagar, Razvan-Gabriel"]
[Black "Arrieta Restrepo, Steven"]
[Result "1-0"]
[ECO "E69"]
[WhiteElo "2138"]
[BlackElo "1938"]
[Annotator "NA"]
[PlyCount "63"]
[EventDate "2019.07.06"]
[EventType "swiss"]
[EventCountry "ESP"]
[SourceTitle "playchess.com"]
[Source "ChessBase"]
[SourceQuality "1"]
[TimeControl "5400+30"]

1. d4 {[%emt 0:00:00]} d6 {[%emt 0:00:00]} 2. Nf3 {[%emt 0:00:00]} Nf6 {[%emt 0:00:34]} 3. g3 {[%emt 0:00:01]} g6 {[%emt 0:02:13]} 4. Bg2 Bg7 {[%emt 0:00:00]} 5. O-O {[%emt 0:00:36]} O-O {[%emt 0:00:00]} 6. c4 {[%emt 0:00:10]} c6 {[%emt 0:00:24]} 7. Nc3 {[%emt 0:01:33]} Nbd7 {[%emt 0:01:00]} 8. e4 {[%emt 0:00:00]} e5 {[%emt 0:02:07]} 9. h3 {[%emt 0:00:00]} h6 {[%emt 0:01:19]} 10. Be3 Re8 {[%emt 0:02:08]} 11. Qc2 {[%emt 0:02:39]} Qc7 {[%emt 0:10:12]} 12. Rad1 Kh7 {[%emt 0:13:55]} 13. Rfe1 a6 {[%emt 0:38:53]} 14. a4 Ng8 {[%emt 0:41:46]} 15. Kh2 {[%emt 0:13:34]} exd4 {[%emt 0:00:00]} 16. Nxd4 {[%emt 0:00:30]} Ne5 {[%emt 0:00:00]} 17. b3 {[%emt 0:00:30]} h5 {[%emt 0:00:00]} 18. f4 {[%emt 0:00:30]} Nd7 {[%emt 0:00:00]} 19. Nf3 {[%emt 0:00:30]} Bh6 {[%emt 0:00:00]} 20. Qd2 {[%emt 0:00:30]} Bf8 {[%emt 0:00:00]} 21. Ng5+ {[%emt 0:00:30]} Kg7 {[%emt 0:00:00]} 22. Bd4+ {[%emt 0:00:30]} Ngf6 {[%emt 0:00:00]} 23. Nf3 {[%emt 0:00:30]} c5 {[%emt 0:00:00]} 24. Nd5 {[%emt 0:00:30]} Qd8 {[%emt 0:00:00]} 25. Bc3 {[%emt 0:00:30]} Kg8 {[%emt 0:00:00]} 26. Nxf6+ {[%emt 0:00:30]} Nxf6 {[%emt 0:00:00]} 27. e5 {[%emt 0:00:30]} Nh7 {[%emt 0:00:00]} 28. exd6 {[%emt 0:00:30]} Rxe1 {[%emt 0:00:00]} 29. Qxe1 {[%emt 0:00:30]} Bf5 {[%emt 0:00:00]} 30. Qe5 {[%emt 0:00:30]} f6 {[%emt 0:00:00]} 31. Qd5+ {[%emt 0:00:30]} Kh8 {[%emt 0:00:00]} 32. Nh4 {[%emt 0:00:30]} 1-0

[Event "XXI Torredembarra Open 2019"]
[Site "Torredembarra"]
[Date "2019.07.10"]
[Round "5.7"]
[White "Soler Lopez, Hugo"]
[Black "Sanz Bastos, Fernando"]
[Result "1-0"]
[ECO "C56"]
[WhiteElo "2072"]
[BlackElo "1874"]
[Annotator "NA"]
[PlyCount "63"]
[EventDate "2019.07.06"]
[EventType "swiss"]
[EventCountry "ESP"]
[SourceTitle "playchess.com"]
[Source "ChessBase"]
[SourceQuality "1"]
[TimeControl "5400+30"]

1. e4 {[%emt 0:00:00]} e5 {[%emt 0:00:00]} 2. Nf3 Nc6 {[%emt 0:00:26]} 3. Bc4 {[%emt 0:00:25]} Nf6 {[%emt 0:00:00]} 4. d4 exd4 {[%emt 0:01:57]} 5. O-O Bc5 {[%emt 0:00:54]} 6. e5 Ng4 {[%emt 0:01:06]} 7. Bf4 {[%emt 0:04:10]} d5 {[%emt 0:05:42]} 8. exd6 {[%emt 0:03:03]} Bxd6 {[%emt 0:00:13]} 9. Re1+ {[%emt 0:04:19]} Be7 {[%emt 0:00:25]} 10. c3 {[%emt 0:03:37]} O-O {[%emt 0:04:39]} 11. cxd4 {[%emt 0:00:19]} Bd6 {[%emt 0:17:27]} 12. Qd2 {[%emt 0:15:25]} Qf6 {[%emt 0:02:04]} 13. Bg5 {[%emt 0:00:17]} Qg6 {[%emt 0:02:17]} 14. Bd3 f5 {[%emt 0:00:31]} 15. Bc4+ Kh8 {[%emt 0:15:03]} 16. h3 {[%emt 0:04:53]} Nf6 {[%emt 0:00:00]} 17. Bxf6 gxf6 {[%emt 0:08:12]} 18. a3 {[%emt 0:00:12]} f4 {[%emt 0:00:30]} 19. Kh2 {[%emt 0:04:57]} Qh5 {[%emt 0:02:07]} 20. Qc3 Bf5 {[%emt 0:10:12]} 21. Nbd2 {[%emt 0:00:37]} Rae8 {[%emt 0:00:00]} 22. b4 Re3 {[%emt 0:11:23]} 23. fxe3 {[%emt 0:00:06]} fxe3+ {[%emt 0:00:00]} 24. Kg1 exd2 {[%emt 0:00:00]} 25. Nxd2 Qh4 {[%emt 0:04:51]} 26. Be6 {[%emt 0:02:32]} Bxe6 {[%emt 0:00:00]} 27. Rxe6 {[%emt 0:00:14]} Nxd4 {[%emt 0:00:25]} 28. Re4 {[%emt 0:02:02]} Qg5 {[%emt 0:00:00]} 29. Rxd4 Be5 {[%emt 0:00:00]} 30. Nf3 Qg3 {[%emt 0:00:00]} 31. Qd2 Rg8 {[%emt 0:00:45]} 32. Nxe5 {[%emt 0:00:39]} 1-0

[Event "XXI Torredembarra Open 2019"]
[Site "Torredembarra"]
[Date "2019.07.10"]
[Round "5.8"]
[White "Guasch Guasch, Ferran"]
[Black "Guasch Figuerola, Agusti"]
[Result "0-1"]
[ECO "A07"]
[WhiteElo "1806"]
[BlackElo "2071"]
[Annotator "NA"]
[PlyCount "48"]
[EventDate "2019.07.06"]
[EventType "swiss"]
[EventCountry "ESP"]
[SourceTitle "playchess.com"]
[Source "ChessBase"]
[SourceQuality "1"]
[TimeControl "5400+30"]

1. Nf3 {[%emt 0:01:15]} g6 {[%emt 0:01:00]} 2. g3 {[%emt 0:00:15]} Bg7 {[%emt 0:00:12]} 3. Bg2 {[%emt 0:00:00]} e5 {[%emt 0:00:25]} 4. d3 {[%emt 0:00:00]} d5 {[%emt 0:01:35]} 5. O-O {[%emt 0:00:34]} Ne7 {[%emt 0:07:16]} 6. c4 {[%emt 0:04:06]} c6 {[%emt 0:18:31]} 7. Nbd2 {[%emt 0:00:53]} O-O {[%emt 0:00:00]} 8. Rb1 a5 {[%emt 0:08:46]} 9. Qc2 {[%emt 0:04:25]} h6 {[%emt 0:02:02]} 10. b3 {[%emt 0:04:27]} Be6 {[%emt 0:12:00]} 11. a3 {[%emt 0:09:14]} Nd7 {[%emt 0:00:25]} 12. b4 {[%emt 0:00:15]} axb4 {[%emt 0:00:12]} 13. axb4 {[%emt 0:25:41]} f5 {[%emt 0:08:39]} 14. Bb2 {[%emt 0:07:08]} g5 {[%emt 0:10:02]} 15. Nb3 {[%emt 0:05:29]} d4 {[%emt 0:03:40]} 16. e3 {[%emt 0:02:39]} dxe3 {[%emt 0:00:35]} 17. fxe3 {[%emt 0:00:38]} Qb6 {[%emt 0:06:59]} 18. Kh1 {[%emt 0:03:37]} g4 {[%emt 0:03:34]} 19. c5 {[%emt 0:07:06]} Qxb4 {[%emt 0:03:56]} 20. Nxe5 {[%emt 0:01:36]} Bxb3 {[%emt 0:00:00]} 21. Qc3 Qxc3 {[%emt 0:00:00]} 22. Bxc3 Bxe5 {[%emt 0:00:00]} 23. Bxe5 {[%emt 0:13:08]} Nxe5 {[%emt 0:00:00]} 24. Rxb3 Ra7 {[%emt 0:00:36]} 0-1